[Event "Titled Tuesday Blitz July 25 Late 2023"]
[White "Baches Garcia, Guillermo"]
[Black "Tsukerman, Julia"]
[WhiteFideId "2209764"]
[BlackFideId "2621649"]
[WhiteElo "2427"]
[BlackElo "2124"]
[Result "1-0"]
[Round "4"]
[TimeControl "180+2"]
[Date "2023.07.25"]
[WhiteClock "0:00:10"]
[BlackClock "0:00:01"]
[Board "159"]

1. e4 {[%clk 0:03:00]}  c5 {[%clk 0:02:59]} 2. Nf3 {[%clk 0:03:01]}  d6 {[%clk 0:02:58]} 3. d4 {[%clk 0:03:01]}  cxd4 {[%clk 0:02:59]} 4. Nxd4 {[%clk 0:03:02]}  Nf6 {[%clk 0:02:59]} 5. Nc3 {[%clk 0:03:02]}  a6 {[%clk 0:03:00]} 6. Be3 {[%clk 0:03:01]}  e5 {[%clk 0:03:00]} 7. Nb3 {[%clk 0:03:01]}  Be6 {[%clk 0:03:01]} 8. f3 {[%clk 0:03:02]}  Be7 {[%clk 0:03:01]} 9. Qd2 {[%clk 0:03:02]}  Nbd7 {[%clk 0:03:01]} 10. O-O-O {[%clk 0:03:02]}  b5 {[%clk 0:02:56]} 11. g4 {[%clk 0:03:02]}  O-O {[%clk 0:02:43]} 12. g5 {[%clk 0:03:01]}  Nh5 {[%clk 0:02:44]} 13. Kb1 {[%clk 0:03:02]}  b4 {[%clk 0:02:40]} 14. Nd5 {[%clk 0:02:55]}  Bxd5 {[%clk 0:02:40]} 15. exd5 {[%clk 0:02:53]}  a5 {[%clk 0:02:39]} 16. Bb5 {[%clk 0:02:40]}  Nb6 {[%clk 0:02:11]} 17. Qf2 {[%clk 0:02:28]}  Nd7 {[%clk 0:01:56]} 18. Bc6 {[%clk 0:02:02]}  Rc8 {[%clk 0:01:41]} 19. h4 {[%clk 0:01:45]}  f5 {[%clk 0:01:31]} 20. Rhe1 {[%clk 0:01:13]}  f4 {[%clk 0:01:17]} 21. Bc1 {[%clk 0:01:08]}  Qc7 {[%clk 0:00:53]} 22. Nd4 {[%clk 0:00:56]}  Nc5 {[%clk 0:00:43]} 23. Nb5 {[%clk 0:00:44]}  Qb6 {[%clk 0:00:30]} 24. Qe2 {[%clk 0:00:38]}  Ng3 {[%clk 0:00:26]} 25. Qc4 {[%clk 0:00:37]}  Kh8 {[%clk 0:00:17]} 26. b3 {[%clk 0:00:36]}  Nf5 {[%clk 0:00:16]} 27. a4 {[%clk 0:00:31]}  bxa3 {[%clk 0:00:16]} 28. Ka2 {[%clk 0:00:29]}  Rb8 {[%clk 0:00:14]} 29. Bxa3 {[%clk 0:00:28]}  g6 {[%clk 0:00:11]} 30. Bxc5 {[%clk 0:00:27]}  dxc5 {[%clk 0:00:11]} 31. Nc3 {[%clk 0:00:22]}  Nd6 {[%clk 0:00:09]} 32. Qe2 {[%clk 0:00:19]}  Nf7 {[%clk 0:00:07]} 33. Na4 {[%clk 0:00:18]}  Qb4 {[%clk 0:00:07]} 34. Qc4 {[%clk 0:00:17]}  Qxc4 {[%clk 0:00:07]} 35. bxc4 {[%clk 0:00:17]}  Bd6 {[%clk 0:00:07]} 36. Rb1 {[%clk 0:00:17]}  Rb4 {[%clk 0:00:07]} 37. c3 {[%clk 0:00:17]}  Rxb1 {[%clk 0:00:04]} 38. Rxb1 {[%clk 0:00:17]}  Rb8 {[%clk 0:00:04]} 39. Rb5 {[%clk 0:00:16]}  Rxb5 {[%clk 0:00:04]} 40. cxb5 {[%clk 0:00:16]}  Nd8 {[%clk 0:00:04]} 41. Nb2 {[%clk 0:00:15]}  Kg7 {[%clk 0:00:02]} 42. Nc4 {[%clk 0:00:15]}  Bb8 {[%clk 0:00:03]} 43. Nxa5 {[%clk 0:00:12]}  Kf7 {[%clk 0:00:01]} 44. Kb3 {[%clk 0:00:12]}  Ke7 {[%clk 0:00:02]} 45. Kc4 {[%clk 0:00:12]}  Bd6 {[%clk 0:00:02]} 46. Kd3 {[%clk 0:00:12]}  Nf7 {[%clk 0:00:01]} 47. Nc4 {[%clk 0:00:11]}  Kd8 {[%clk 0:00:02]} 48. Ke4 {[%clk 0:00:11]}  Bc7 {[%clk 0:00:01]} 49. b6 {[%clk 0:00:10]}  Kc8 {[%clk 0:00:02]} 50. bxc7 {[%clk 0:00:10]}  Kxc7 {[%clk 0:00:01]} 51. Ba4 {[%clk 0:00:10]} 1-0


[Site "https://www.chess.com"]

[Event "Titled Tuesday Blitz July 25 Late 2023"]
[White "Sztokbant, Bernardo Vainzoff"]
[Black "Semenova, Alina"]
[WhiteFideId "2115956"]
[BlackFideId "24113875"]
[WhiteElo "2423"]
[BlackElo "2092"]
[Result "1-0"]
[Round "4"]
[TimeControl "180+2"]
[Date "2023.07.25"]
[WhiteClock "0:01:22"]
[BlackClock "0:00:00"]
[Board "161"]

1. e4 {[%clk 0:02:59]}  e5 {[%clk 0:03:00]} 2. Nf3 {[%clk 0:02:59]}  Nf6 {[%clk 0:03:00]} 3. d4 {[%clk 0:02:58]}  Nxe4 {[%clk 0:03:00]} 4. Bd3 {[%clk 0:02:59]}  d5 {[%clk 0:03:00]} 5. Nxe5 {[%clk 0:02:59]}  Nd7 {[%clk 0:03:00]} 6. Nxd7 {[%clk 0:02:59]}  Bxd7 {[%clk 0:03:00]} 7. O-O {[%clk 0:03:00]}  Bd6 {[%clk 0:03:00]} 8. Nc3 {[%clk 0:03:00]}  Nxc3 {[%clk 0:03:00]} 9. bxc3 {[%clk 0:03:01]}  O-O {[%clk 0:03:00]} 10. Qh5 {[%clk 0:03:01]}  g6 {[%clk 0:02:58]} 11. Qxd5 {[%clk 0:03:00]}  Bc6 {[%clk 0:02:50]} 12. Qg5 {[%clk 0:03:00]}  f6 {[%clk 0:02:41]} 13. Qh4 {[%clk 0:02:53]}  Qe7 {[%clk 0:02:25]} 14. Bf4 {[%clk 0:02:46]}  Rae8 {[%clk 0:02:16]} 15. Bc4+ {[%clk 0:02:32]}  Kh8 {[%clk 0:02:09]} 16. Bh6 {[%clk 0:02:32]}  g5 {[%clk 0:01:55]} 17. Bxf8 {[%clk 0:02:27]}  Rxf8 {[%clk 0:01:55]} 18. Qh3 {[%clk 0:02:15]}  f5 {[%clk 0:01:37]} 19. Rfe1 {[%clk 0:02:14]}  Qg7 {[%clk 0:01:22]} 20. Be6 {[%clk 0:01:48]}  g4 {[%clk 0:01:10]} 21. Qd3 {[%clk 0:01:47]}  Qh6 {[%clk 0:00:51]} 22. g3 {[%clk 0:01:46]}  Rf6 {[%clk 0:00:06]} 23. d5 {[%clk 0:01:38]}  Ba4 {[%clk 0:00:02]} 24. Bxf5 {[%clk 0:01:29]}  Qh3 {[%clk 0:00:00]} 25. Qd4 {[%clk 0:01:22]} 1-0


[Site "https://www.chess.com"]

[Event "Titled Tuesday Blitz July 25 Late 2023"]
[White "Winkels, Marcel"]
[Black "Willy, Stephen"]
[WhiteFideId "1003887"]
[BlackFideId "30981468"]
[WhiteElo "2063"]
[BlackElo "2423"]
[Result "0-1"]
[Round "4"]
[TimeControl "180+2"]
[Date "2023.07.25"]
[WhiteClock "0:00:00"]
[BlackClock "0:00:11"]
[Board "162"]

1. e4 {[%clk 0:03:00]}  c6 {[%clk 0:02:54]} 2. d4 {[%clk 0:02:59]}  b5 {[%clk 0:02:55]} 3. Nf3 {[%clk 0:02:58]}  d6 {[%clk 0:02:52]} 4. Bd3 {[%clk 0:02:57]}  Nf6 {[%clk 0:02:51]} 5. O-O {[%clk 0:02:57]}  g6 {[%clk 0:02:50]} 6. Bg5 {[%clk 0:02:52]}  Bg7 {[%clk 0:02:49]} 7. Qd2 {[%clk 0:02:51]}  h6 {[%clk 0:02:49]} 8. Bf4 {[%clk 0:02:50]}  g5 {[%clk 0:02:43]} 9. Bg3 {[%clk 0:02:49]}  Nh5 {[%clk 0:02:34]} 10. Nc3 {[%clk 0:02:36]}  g4 {[%clk 0:02:18]} 11. Nh4 {[%clk 0:02:27]}  Bxd4 {[%clk 0:02:14]} 12. Nxb5 {[%clk 0:02:12]}  Bxb2 {[%clk 0:02:03]} 13. Rab1 {[%clk 0:02:09]}  Bf6 {[%clk 0:02:02]} 14. Nc3 {[%clk 0:01:50]}  e5 {[%clk 0:01:59]} 15. Nf5 {[%clk 0:01:49]}  Bxf5 {[%clk 0:01:53]} 16. exf5 {[%clk 0:01:48]}  Nxg3 {[%clk 0:01:47]} 17. fxg3 {[%clk 0:01:40]}  d5 {[%clk 0:01:45]} 18. Be2 {[%clk 0:01:32]}  Qd6 {[%clk 0:01:42]} 19. Bxg4 {[%clk 0:01:19]}  Qc5+ {[%clk 0:01:34]} 20. Kh1 {[%clk 0:01:14]}  h5 {[%clk 0:01:26]} 21. Bh3 {[%clk 0:01:09]}  Nd7 {[%clk 0:01:19]} 22. Rb7 {[%clk 0:00:55]}  Qd6 {[%clk 0:01:15]} 23. Ne4 {[%clk 0:00:48]}  Qe7 {[%clk 0:01:11]} 24. Nxf6+ {[%clk 0:00:46]}  Qxf6 {[%clk 0:01:12]} 25. c4 {[%clk 0:00:44]}  d4 {[%clk 0:01:10]} 26. Re1 {[%clk 0:00:39]}  Rd8 {[%clk 0:01:05]} 27. Qxd4 {[%clk 0:00:31]}  O-O {[%clk 0:00:57]} 28. Qe3 {[%clk 0:00:21]}  Nb6 {[%clk 0:00:53]} 29. g4 {[%clk 0:00:18]}  Nxc4 {[%clk 0:00:51]} 30. Qe2 {[%clk 0:00:18]}  Rd4 {[%clk 0:00:49]} 31. gxh5 {[%clk 0:00:17]}  Rfd8 {[%clk 0:00:46]} 32. Rbb1 {[%clk 0:00:15]}  Nd2 {[%clk 0:00:41]} 33. Rbd1 {[%clk 0:00:14]}  Ne4 {[%clk 0:00:32]} 34. Rxd4 {[%clk 0:00:10]}  Rxd4 {[%clk 0:00:33]} 35. g3 {[%clk 0:00:09]}  Qg5 {[%clk 0:00:29]} 36. Bg2 {[%clk 0:00:09]}  Nf6 {[%clk 0:00:26]} 37. Qxe5 {[%clk 0:00:08]}  Rd2 {[%clk 0:00:25]} 38. Qb8+ {[%clk 0:00:06]}  Kg7 {[%clk 0:00:24]} 39. Qxa7 {[%clk 0:00:07]}  Qxh5 {[%clk 0:00:18]} 40. Qe3 {[%clk 0:00:04]}  Rxa2 {[%clk 0:00:16]} 41. Qe5 {[%clk 0:00:04]}  Rd2 {[%clk 0:00:13]} 42. Qe3 {[%clk 0:00:03]}  Rd6 {[%clk 0:00:12]} 43. Qe5 {[%clk 0:00:03]}  Rd2 {[%clk 0:00:11]} 44. Qe3 {[%clk 0:00:00]}  Ng4 {[%clk 0:00:11]} 0-1


[Site "https://www.chess.com"]

[Event "Titled Tuesday Blitz July 25 Late 2023"]
[White "Rakitic2010"]
[Black "zano2023"]
[WhiteElo "2416"]
[BlackElo "2014"]
[Result "1-0"]
[Round "4"]
[TimeControl "180+2"]
[Date "2023.07.25"]
[WhiteClock "0:00:38"]
[BlackClock "0:01:13"]
[Board "164"]

1. e4 {[%clk 0:03:00]}  e5 {[%clk 0:02:59]} 2. Nf3 {[%clk 0:03:00]}  d6 {[%clk 0:02:59]} 3. d4 {[%clk 0:02:59]}  f5 {[%clk 0:03:00]} 4. Bg5 {[%clk 0:02:52]}  Be7 {[%clk 0:02:59]} 5. Bxe7 {[%clk 0:02:51]}  Qxe7 {[%clk 0:03:00]} 6. dxe5 {[%clk 0:02:46]}  fxe4 {[%clk 0:03:00]} 7. Nfd2 {[%clk 0:02:42]}  Qxe5 {[%clk 0:02:47]} 8. Nc3 {[%clk 0:02:42]}  Nf6 {[%clk 0:02:45]} 9. Be2 {[%clk 0:02:37]}  O-O {[%clk 0:02:42]} 10. O-O {[%clk 0:02:37]}  d5 {[%clk 0:02:41]} 11. f4 {[%clk 0:02:33]}  Qd4+ {[%clk 0:02:23]} 12. Kh1 {[%clk 0:02:32]}  Qb6 {[%clk 0:02:10]} 13. Nb3 {[%clk 0:02:29]}  c6 {[%clk 0:02:10]} 14. a4 {[%clk 0:02:23]}  a5 {[%clk 0:02:08]} 15. g4 {[%clk 0:02:15]}  Be6 {[%clk 0:01:51]} 16. f5 {[%clk 0:02:12]}  Bf7 {[%clk 0:01:51]} 17. g5 {[%clk 0:02:12]}  Nfd7 {[%clk 0:01:51]} 18. Bh5 {[%clk 0:02:09]}  g6 {[%clk 0:01:48]} 19. Bg4 {[%clk 0:02:02]}  Ne5 {[%clk 0:01:48]} 20. Qe2 {[%clk 0:01:49]}  gxf5 {[%clk 0:01:42]} 21. Bxf5 {[%clk 0:01:48]}  Bg6 {[%clk 0:01:42]} 22. Be6+ {[%clk 0:01:44]}  Kg7 {[%clk 0:01:42]} 23. Rxf8 {[%clk 0:01:44]}  Kxf8 {[%clk 0:01:42]} 24. Rf1+ {[%clk 0:01:33]}  Nf3 {[%clk 0:01:40]} 25. Rxf3+ {[%clk 0:01:31]}  exf3 {[%clk 0:01:40]} 26. Qxf3+ {[%clk 0:01:31]}  Ke7 {[%clk 0:01:34]} 27. Qf6+ {[%clk 0:01:31]}  Kd6 {[%clk 0:01:34]} 28. Bf5+ {[%clk 0:00:49]}  Kc7 {[%clk 0:01:32]} 29. Qe5+ {[%clk 0:00:44]}  Kd8 {[%clk 0:01:29]} 30. Qd6+ {[%clk 0:00:44]}  Ke8 {[%clk 0:01:27]} 31. Nxd5 {[%clk 0:00:43]}  Qd8 {[%clk 0:01:13]} 32. Nf6+ {[%clk 0:00:38]} 1-0


[Site "https://www.chess.com"]

[Event "Titled Tuesday Blitz July 25 Late 2023"]
[White "Rios Escobar, Adan"]
[Black "Eggleston, Thomas A"]
[WhiteFideId "3403645"]
[BlackFideId "412139"]
[WhiteElo "2411"]
[BlackElo "2415"]
[Result "1-0"]
[Round "4"]
[TimeControl "180+2"]
[Date "2023.07.25"]
[WhiteClock "0:00:10"]
[BlackClock "0:00:00"]
[Board "166"]

1. d4 {[%clk 0:02:58]}  e6 {[%clk 0:02:59]} 2. c4 {[%clk 0:02:57]}  f5 {[%clk 0:02:59]} 3. g3 {[%clk 0:02:57]}  Nf6 {[%clk 0:03:00]} 4. Nf3 {[%clk 0:02:57]}  Be7 {[%clk 0:03:00]} 5. Bg2 {[%clk 0:02:57]}  O-O {[%clk 0:03:01]} 6. O-O {[%clk 0:02:58]}  d6 {[%clk 0:03:01]} 7. b3 {[%clk 0:02:44]}  Ne4 {[%clk 0:03:01]} 8. Bb2 {[%clk 0:02:44]}  Bf6 {[%clk 0:03:01]} 9. Nbd2 {[%clk 0:02:41]}  c5 {[%clk 0:02:51]} 10. e3 {[%clk 0:02:30]}  Nc6 {[%clk 0:02:50]} 11. Ne1 {[%clk 0:02:30]}  d5 {[%clk 0:02:44]} 12. cxd5 {[%clk 0:02:13]}  exd5 {[%clk 0:02:43]} 13. f3 {[%clk 0:01:40]}  Nd6 {[%clk 0:02:35]} 14. Nc2 {[%clk 0:01:28]}  cxd4 {[%clk 0:02:29]} 15. Nxd4 {[%clk 0:01:28]}  Nxd4 {[%clk 0:02:28]} 16. Bxd4 {[%clk 0:01:27]}  Bxd4 {[%clk 0:02:27]} 17. exd4 {[%clk 0:01:27]}  Qf6 {[%clk 0:02:25]} 18. Nb1 {[%clk 0:01:25]}  Nb5 {[%clk 0:02:22]} 19. f4 {[%clk 0:01:24]}  Be6 {[%clk 0:02:21]} 20. Re1 {[%clk 0:01:23]}  Bf7 {[%clk 0:02:20]} 21. Re5 {[%clk 0:01:23]}  Rad8 {[%clk 0:02:10]} 22. Qd3 {[%clk 0:01:22]}  Qb6 {[%clk 0:02:07]} 23. Nc3 {[%clk 0:00:53]}  Nxd4 {[%clk 0:02:06]} 24. Kh1 {[%clk 0:00:52]}  Nc6 {[%clk 0:01:53]} 25. Rxf5 {[%clk 0:00:48]}  Nb4 {[%clk 0:01:44]} 26. Qd2 {[%clk 0:00:42]}  d4 {[%clk 0:01:44]} 27. Ne4 {[%clk 0:00:38]}  d3 {[%clk 0:01:16]} 28. Ng5 {[%clk 0:00:34]}  Bg6 {[%clk 0:01:15]} 29. Rxf8+ {[%clk 0:00:30]}  Rxf8 {[%clk 0:01:14]} 30. Re1 {[%clk 0:00:31]}  Nc2 {[%clk 0:01:01]} 31. Bd5+ {[%clk 0:00:27]}  Kh8 {[%clk 0:01:00]} 32. Re6 {[%clk 0:00:25]}  Qb4 {[%clk 0:00:35]} 33. Qxb4 {[%clk 0:00:17]}  Nxb4 {[%clk 0:00:35]} 34. Bc4 {[%clk 0:00:17]}  Rd8 {[%clk 0:00:31]} 35. Rxg6 {[%clk 0:00:17]}  hxg6 {[%clk 0:00:24]} 36. Nf7+ {[%clk 0:00:16]}  Kh7 {[%clk 0:00:24]} 37. Nxd8 {[%clk 0:00:16]}  d2 {[%clk 0:00:24]} 38. Be2 {[%clk 0:00:17]}  Nd3 {[%clk 0:00:24]} 39. Kg2 {[%clk 0:00:15]}  Nb2 {[%clk 0:00:24]} 40. Nxb7 {[%clk 0:00:14]}  d1=Q {[%clk 0:00:24]} 41. Bxd1 {[%clk 0:00:15]}  Nxd1 {[%clk 0:00:24]} 42. Kf3 {[%clk 0:00:15]}  Nc3 {[%clk 0:00:25]} 43. a3 {[%clk 0:00:14]}  Nb5 {[%clk 0:00:24]} 44. a4 {[%clk 0:00:08]}  Nd4+ {[%clk 0:00:24]} 45. Ke4 {[%clk 0:00:08]}  Nxb3 {[%clk 0:00:25]} 46. Kd5 {[%clk 0:00:07]}  Kh6 {[%clk 0:00:24]} 47. Nc5 {[%clk 0:00:08]}  Na5 {[%clk 0:00:23]} 48. Kd6 {[%clk 0:00:05]}  g5 {[%clk 0:00:23]} 49. fxg5+ {[%clk 0:00:04]}  Kxg5 {[%clk 0:00:24]} 50. Ne6+ {[%clk 0:00:04]}  Kf6 {[%clk 0:00:23]} 51. Nd4 {[%clk 0:00:03]}  g5 {[%clk 0:00:22]} 52. Nc6 {[%clk 0:00:03]}  Nc4+ {[%clk 0:00:21]} 53. Kc5 {[%clk 0:00:02]}  Nb6 {[%clk 0:00:20]} 54. a5 {[%clk 0:00:02]}  Nd7+ {[%clk 0:00:20]} 55. Kd6 {[%clk 0:00:03]}  Nf8 {[%clk 0:00:20]} 56. Nxa7 {[%clk 0:00:03]}  g4 {[%clk 0:00:19]} 57. Nc6 {[%clk 0:00:04]}  Ng6 {[%clk 0:00:19]} 58. a6 {[%clk 0:00:05]}  Nf4 {[%clk 0:00:07]} 59. gxf4 {[%clk 0:00:05]}  Kf5 {[%clk 0:00:02]} 60. Ne5 {[%clk 0:00:05]}  Kxf4 {[%clk 0:00:03]} 61. Nxg4 {[%clk 0:00:05]}  Kxg4 {[%clk 0:00:03]} 62. a7 {[%clk 0:00:06]}  Kh3 {[%clk 0:00:03]} 63. a8=Q {[%clk 0:00:07]}  Kxh2 {[%clk 0:00:04]} 64. Qf3 {[%clk 0:00:07]}  Kg1 {[%clk 0:00:04]} 65. Qe2 {[%clk 0:00:08]}  Kh1 {[%clk 0:00:04]} 66. Ke5 {[%clk 0:00:08]}  Kg1 {[%clk 0:00:04]} 67. Kf4 {[%clk 0:00:09]}  Kh1 {[%clk 0:00:00]} 68. Kg3 {[%clk 0:00:10]} 1-0


[Site "https://www.chess.com"]

[Event "Titled Tuesday Blitz July 25 Late 2023"]
[White "Ai, Evan"]
[Black "Butolo, Alexandru-Mircea"]
[WhiteFideId "2094770"]
[BlackFideId "1261649"]
[WhiteElo "2414"]
[BlackElo "1804"]
[Result "0-1"]
[Round "4"]
[TimeControl "180+2"]
[Date "2023.07.25"]
[WhiteClock "0:01:15"]
[BlackClock "0:01:57"]
[Board "167"]

1. e4 {[%clk 0:03:00]}  c5 {[%clk 0:02:59]} 2. Nf3 {[%clk 0:02:58]}  Nc6 {[%clk 0:02:59]} 3. d4 {[%clk 0:02:58]}  cxd4 {[%clk 0:03:00]} 4. Nxd4 {[%clk 0:02:58]}  Nf6 {[%clk 0:03:00]} 5. Nc3 {[%clk 0:02:58]}  e6 {[%clk 0:03:01]} 6. Nxc6 {[%clk 0:02:58]}  bxc6 {[%clk 0:03:01]} 7. e5 {[%clk 0:02:58]}  Nd5 {[%clk 0:03:02]} 8. Ne4 {[%clk 0:02:59]}  Qc7 {[%clk 0:03:02]} 9. f4 {[%clk 0:02:59]}  Rb8 {[%clk 0:03:01]} 10. c4 {[%clk 0:02:58]}  Bb4+ {[%clk 0:03:01]} 11. Ke2 {[%clk 0:02:56]}  O-O {[%clk 0:03:01]} 12. cxd5 {[%clk 0:02:50]}  cxd5 {[%clk 0:03:02]} 13. Nf2 {[%clk 0:02:32]}  f6 {[%clk 0:03:02]} 14. Nd3 {[%clk 0:02:30]}  fxe5 {[%clk 0:02:45]} 15. fxe5 {[%clk 0:02:31]}  Ba6 {[%clk 0:02:43]} 16. Qa4 {[%clk 0:01:55]}  Qxe5+ {[%clk 0:02:37]} 17. Kd1 {[%clk 0:01:54]}  Rxf1+ {[%clk 0:01:59]} 18. Rxf1 {[%clk 0:01:48]}  Bxd3 {[%clk 0:01:59]} 19. Bf4 {[%clk 0:01:15]}  Qe2+ {[%clk 0:01:57]} 0-1


[Site "https://www.chess.com"]

[Event "Titled Tuesday Blitz July 25 Late 2023"]
[White "Masterisback04"]
[Black "awayceiling"]
[WhiteElo "1865"]
[BlackElo "1453"]
[Result "1-0"]
[Round "4"]
[TimeControl "180+2"]
[Date "2023.07.25"]
[WhiteClock "0:02:32"]
[BlackClock "0:02:26"]
[Board "168"]

1. e4 {[%clk 0:03:00]}  c5 {[%clk 0:03:00]} 2. Nf3 {[%clk 0:02:54]}  e6 {[%clk 0:03:00]} 3. d4 {[%clk 0:02:53]}  cxd4 {[%clk 0:03:01]} 4. Nxd4 {[%clk 0:02:54]}  a6 {[%clk 0:03:02]} 5. Nc3 {[%clk 0:02:53]}  Qc7 {[%clk 0:03:02]} 6. Qd3 {[%clk 0:02:49]}  Nf6 {[%clk 0:03:02]} 7. Qg3 {[%clk 0:02:48]}  Qxg3 {[%clk 0:02:55]} 8. hxg3 {[%clk 0:02:48]}  Nc6 {[%clk 0:02:55]} 9. Nxc6 {[%clk 0:02:47]}  bxc6 {[%clk 0:02:55]} 10. e5 {[%clk 0:02:47]}  Nd5 {[%clk 0:02:55]} 11. Ne4 {[%clk 0:02:45]}  Bb7 {[%clk 0:02:51]} 12. c4 {[%clk 0:02:40]}  Nc7 {[%clk 0:02:50]} 13. Be3 {[%clk 0:02:35]}  Rb8 {[%clk 0:02:33]} 14. O-O-O {[%clk 0:02:34]}  Bc5 {[%clk 0:02:26]} 15. Bxc5 {[%clk 0:02:32]} 1-0


[Site "https://www.chess.com"]

[Event "Titled Tuesday Blitz July 25 Late 2023"]
[White "AndresDelgado77"]
[Black "Yeritsyan, Hayk"]
[BlackFideId "13307320"]
[WhiteElo "2308"]
[BlackElo "2473"]
[Result "1-0"]
[Round "4"]
[TimeControl "180+2"]
[Date "2023.07.25"]
[WhiteClock "0:00:28"]
[BlackClock "0:01:11"]
[Board "172"]

1. e4 {[%clk 0:02:59]}  c6 {[%clk 0:03:00]} 2. d4 {[%clk 0:02:55]}  d5 {[%clk 0:03:00]} 3. Nc3 {[%clk 0:02:55]}  dxe4 {[%clk 0:03:00]} 4. Nxe4 {[%clk 0:02:55]}  Nd7 {[%clk 0:03:01]} 5. Bc4 {[%clk 0:02:54]}  Ngf6 {[%clk 0:03:01]} 6. Ng5 {[%clk 0:02:54]}  e6 {[%clk 0:03:01]} 7. Qe2 {[%clk 0:02:51]}  Nb6 {[%clk 0:03:01]} 8. Bb3 {[%clk 0:02:51]}  h6 {[%clk 0:02:51]} 9. N5f3 {[%clk 0:02:47]}  Be7 {[%clk 0:02:46]} 10. Bf4 {[%clk 0:02:38]}  Nbd5 {[%clk 0:02:45]} 11. Bg3 {[%clk 0:02:38]}  Bd6 {[%clk 0:02:45]} 12. Ne5 {[%clk 0:02:32]}  Qc7 {[%clk 0:02:39]} 13. O-O-O {[%clk 0:02:22]}  O-O {[%clk 0:02:30]} 14. c4 {[%clk 0:01:59]}  Nb4 {[%clk 0:02:17]} 15. a3 {[%clk 0:01:56]}  Na6 {[%clk 0:02:15]} 16. c5 {[%clk 0:01:50]}  Bxe5 {[%clk 0:02:15]} 17. Bxe5 {[%clk 0:01:50]}  Qd8 {[%clk 0:02:15]} 18. g4 {[%clk 0:01:44]}  Nd5 {[%clk 0:02:15]} 19. h4 {[%clk 0:01:39]}  f6 {[%clk 0:02:06]} 20. Bd6 {[%clk 0:01:39]}  Re8 {[%clk 0:02:05]} 21. f4 {[%clk 0:01:34]}  Nac7 {[%clk 0:01:59]} 22. Bc4 {[%clk 0:01:25]}  Nb5 {[%clk 0:01:48]} 23. Bxb5 {[%clk 0:01:25]}  cxb5 {[%clk 0:01:48]} 24. g5 {[%clk 0:01:24]}  fxg5 {[%clk 0:01:44]} 25. hxg5 {[%clk 0:01:23]}  hxg5 {[%clk 0:01:39]} 26. Qh5 {[%clk 0:01:11]}  Nf6 {[%clk 0:01:28]} 27. Qg6 {[%clk 0:01:01]}  g4 {[%clk 0:01:23]} 28. Ne2 {[%clk 0:00:41]}  Qd7 {[%clk 0:01:22]} 29. Ng3 {[%clk 0:00:30]}  Qf7 {[%clk 0:01:19]} 30. Rh8+ {[%clk 0:00:30]}  Kxh8 {[%clk 0:01:15]} 31. Qxf7 {[%clk 0:00:29]}  Bd7 {[%clk 0:01:11]} 32. Rh1+ {[%clk 0:00:28]} 1-0


[Site "https://www.chess.com"]

[Event "Titled Tuesday Blitz July 25 Late 2023"]
[White "WindWhistler11"]
[Black "Schut, Han"]
[BlackFideId "1005561"]
[WhiteElo "2442"]
[BlackElo "2270"]
[Result "0-1"]
[Round "4"]
[TimeControl "180+2"]
[Date "2023.07.25"]
[WhiteClock "0:00:33"]
[BlackClock "0:00:25"]
[Board "173"]

1. Nf3 {[%clk 0:02:59]}  Nf6 {[%clk 0:02:59]} 2. c4 {[%clk 0:02:59]}  g6 {[%clk 0:02:59]} 3. g3 {[%clk 0:02:59]}  Bg7 {[%clk 0:02:59]} 4. Bg2 {[%clk 0:03:00]}  O-O {[%clk 0:02:59]} 5. O-O {[%clk 0:03:01]}  d5 {[%clk 0:03:00]} 6. cxd5 {[%clk 0:03:01]}  Nxd5 {[%clk 0:03:00]} 7. Nc3 {[%clk 0:03:02]}  c5 {[%clk 0:02:59]} 8. Qb3 {[%clk 0:03:01]}  Nb6 {[%clk 0:02:57]} 9. Ne4 {[%clk 0:02:56]}  c4 {[%clk 0:02:40]} 10. Qc2 {[%clk 0:02:42]}  Nc6 {[%clk 0:02:38]} 11. a3 {[%clk 0:02:24]}  Bf5 {[%clk 0:02:35]} 12. Nh4 {[%clk 0:02:21]}  Nd4 {[%clk 0:02:34]} 13. Qd1 {[%clk 0:02:20]}  Bg4 {[%clk 0:02:14]} 14. h3 {[%clk 0:02:16]}  Bc8 {[%clk 0:02:08]} 15. a4 {[%clk 0:02:01]}  a5 {[%clk 0:02:06]} 16. Ra3 {[%clk 0:01:56]}  e5 {[%clk 0:01:46]} 17. d3 {[%clk 0:01:52]}  f5 {[%clk 0:01:39]} 18. Nc5 {[%clk 0:01:51]}  Qe7 {[%clk 0:01:26]} 19. e3 {[%clk 0:01:38]}  Qxc5 {[%clk 0:01:19]} 20. exd4 {[%clk 0:01:38]}  Qxd4 {[%clk 0:01:07]} 21. Be3 {[%clk 0:01:28]}  Qxb2 {[%clk 0:01:07]} 22. Bxb6 {[%clk 0:01:28]}  Qxa3 {[%clk 0:01:07]} 23. dxc4 {[%clk 0:01:29]}  Be6 {[%clk 0:00:47]} 24. c5 {[%clk 0:01:21]}  e4 {[%clk 0:00:46]} 25. Qd6 {[%clk 0:01:18]}  Qb3 {[%clk 0:00:40]} 26. Re1 {[%clk 0:01:08]}  Rac8 {[%clk 0:00:36]} 27. Re3 {[%clk 0:01:06]}  Qd5 {[%clk 0:00:29]} 28. Bf1 {[%clk 0:01:02]}  Bd4 {[%clk 0:00:24]} 29. Qxd5 {[%clk 0:00:53]}  Bxd5 {[%clk 0:00:25]} 30. Re1 {[%clk 0:00:53]}  Bxc5 {[%clk 0:00:25]} 31. Bxa5 {[%clk 0:00:53]}  b6 {[%clk 0:00:25]} 32. Bd2 {[%clk 0:00:53]}  Be7 {[%clk 0:00:24]} 33. Ng2 {[%clk 0:00:53]}  Rc2 {[%clk 0:00:23]} 34. Be3 {[%clk 0:00:52]}  Bc4 {[%clk 0:00:23]} 35. Nf4 {[%clk 0:00:49]}  Bxf1 {[%clk 0:00:22]} 36. Kxf1 {[%clk 0:00:50]}  Bc5 {[%clk 0:00:23]} 37. Bxc5 {[%clk 0:00:45]}  bxc5 {[%clk 0:00:24]} 38. Ra1 {[%clk 0:00:44]}  Rb8 {[%clk 0:00:23]} 39. h4 {[%clk 0:00:43]}  Rcb2 {[%clk 0:00:23]} 40. Ne6 {[%clk 0:00:41]}  Rb1+ {[%clk 0:00:23]} 41. Rxb1 {[%clk 0:00:41]}  Rxb1+ {[%clk 0:00:24]} 42. Kg2 {[%clk 0:00:42]}  c4 {[%clk 0:00:25]} 43. a5 {[%clk 0:00:42]}  c3 {[%clk 0:00:25]} 44. Nd4 {[%clk 0:00:33]}  Ra1 {[%clk 0:00:25]} 0-1


[Site "https://www.chess.com"]